[Event "Olomouc Chess Summer-IM 2022"]
[Site "Olomouc"]
[Date "2022.08.18"]
[Round "7.8"]
[White "Nytra, Ondrej"]
[Black "Stinka, Jakub"]
[Result "0-1"]
[ECO "C01"]
[WhiteElo "2214"]
[BlackElo "2335"]
[Annotator "TA"]
[PlyCount "74"]
[EventDate "2022.08.10"]
[EventCountry "CZE"]
[SourceTitle "playchess.com"]
[Source "ChessBase"]
[SourceQuality "1"]
[TimeControl "40/5400+30:1800+30"]

{[%evp 9,74,-14,-14,-18,-20,-22,-8,-33,-22,-48,-35,-41,-25,-106,-52,-114,-102,-80,-87,-75,-73,-84,-75,-150,-152,-227,-220,-217,-174,-159,-76,-76,-48,-104,-101,-180,-176,-233,-242,-287,-281,-278,-195,-208,-201,-246,-240,-265,-263,-398,-389,-375,-376,-365,-364,-403,-399,-376,-373,-499,-481,-493,-502,-517,-512,-523,-469]} 1. e4 {[%emt 0:00:07]} e6 {[%emt 0:00:12]} 2. d4 {[%emt 0:01:49]} d5 {[%emt 0:00:35]} 3. exd5 {[%emt 0:00:58]} exd5 {[%emt 0:00:10]} 4. g3 {[%emt 0:00:05]} Nf6 {[%emt 0:02:31]} 5. Bg2 {[%emt 0:00:41]} Bd6 {[%emt 0:04:50]} 6. Ne2 {[%emt 0:01:15] C01: French: Exchange Variation.} O-O {[%emt 0:01:58]} 7. O-O {[%emt 0:03:39]} Re8 {[%emt 0:02:51] [#]} 8. Bg5 $146 {[%emt 0:08:02] The position is equal.} ({Predecessor:} 8. Bf4 Bf8 9. h3 Nc6 10. Nbc3 h6 11. Nb5 Re7 12. c4 dxc4 13. d5 Nb4 14. Nbc3 {0-1 (32) Opravil,K (2024)-Malivanek,J (2178) Czech Republic 2013}) 8... c6 {[%emt 0:01:10]} 9. c3 {[%emt 0:03:52]} Bf5 {[%emt 0:08:52]} 10. a4 {[%emt 0:04:30]} Nbd7 {[%emt 0:06:21]} 11. f3 {[%emt 0:03:35]} (11. Bf4 $11 {remains equal.} Bxf4 12. Nxf4) 11... Nf8 {[%emt 0:16:06]} ({Better is} 11... Re6 $17 12. Bf4 Qb6) 12. Bf4 {[%emt 0:01:11]} (12. Nd2 $15) 12... Rxe2 {[%emt 0:02:54]} 13. Qxe2 {[%emt 0:00:12]} Bxf4 {[%emt 0:00:02]} 14. gxf4 {[%emt 0:00:06]} Ng6 {[%emt 0:00:28] Threatens to win with ...Nh5.} 15. Qd2 {[%emt 0:02:06]} Nh5 {[%emt 0:02:03]} 16. Na3 {[%emt 0:03:14]} ({White should play} 16. Re1) 16... Nhxf4 $17 {[%emt 0:00:40]} (16... Ngxf4 17. Rfe1 $15) 17. Rae1 {[%emt 0:02:31]} (17. Kh1 $17 {keeps fighting.}) 17... Qg5 {[%emt 0:07:06][%mdl 1024] [#] aiming for ...Nh3+. Black has strong compensation.} 18. Kh1 {[%emt 0:00:54]} Nh4 {[%emt 0:02:30]} 19. Rf2 {[%emt 0:00:12]} Nd3 {[%emt 0:07:44] Pair of Knights!} 20. Rfe2 {[%emt 0:01:25] Intending Re8+ and mate.} (20. Qxg5 $2 Nxf2+ 21. Kg1 {[#]} Nxf3+ $1 {[%mdl 512]} 22. Kxf2 Nxg5 $19) 20... Qd8 {[%emt 0:03:52] Prevents Re8+. Black is much more active.} 21. Rd1 {[%emt 0:05:31] Black converts the advantage convincingly.} ({White should try} 21. Rg1 $15) 21... h6 {[%emt 0:04:28]} 22. Qe3 {[%emt 0:01:21]} (22. Rg1 $17 {was necessary.}) 22... Qg5 $36 {[%emt 0:02:50][%mdl 2048] Black is in control.} 23. Nc2 {[%emt 0:21:57]} (23. Qxg5 $142 hxg5 24. Rdd2) 23... Nf4 {[%emt 0:02:22][%cal Rh4g2]} ({Stronger than} 23... Nxb2 24. Ra1 $17) 24. Ne1 {[%emt 0:00:39]} Nxe2 {[%emt 0:01:14]} ({Weaker is} 24... Nhxg2 25. Rxg2 Nxg2 26. Nxg2 $17) 25. Qxe2 {[%emt 0:00:02]} Ng6 {[%emt 0:01:34]} 26. Bf1 {[%emt 0:01:46]} Kf8 {[%emt 0:02:06]} ({Inferior is} 26... Nf4 27. Qe3) 27. Ng2 {[%emt 0:00:42]} Re8 {[%emt 0:00:09]} 28. Qf2 {[%emt 0:00:03]} Bh3 {[%emt 0:01:10]} 29. Re1 {[%emt 0:02:01]} (29. Ne1 {might work better.} Bxf1 30. Qxf1) 29... Bxg2+ {[%emt 0:01:30]} 30. Bxg2 {[%emt 0:00:05]} Rxe1+ {[%emt 0:00:24]} 31. Qxe1 {[%emt 0:00:02][%mdl 4096] Endgame KQB-KQN} Nh4 {[%emt 0:00:32][%csl Gh4][%cal Rg5g2]} 32. Bf1 {[%emt 0:00:38]} Nxf3 {[%emt 0:01:01][%csl Gf3][%cal Rg5g1]} 33. Qf2 {[%emt 0:00:02] Inhibits Qg1+.} Nh4 {[%emt 0:02:00]} 34. c4 {[%emt 0:01:23]} Qf5 {[%emt 0:01:25] Black is clearly winning.} 35. Qxf5 {[%emt 0:00:50]} Nxf5 {[%emt 0:00:02]} 36. cxd5 {[%emt 0:00:05]} cxd5 {[%emt 0:00:12]} 37. Bg2 {[%emt 0:00:02]} Ne3 {[%emt 0:00:54] Weighted Error Value: White=0.35/Black=0.11 (very precise)} 0-1

[Event "Olomouc Chess Summer-IM 2022"]
[Site "Olomouc"]
[Date "2022.08.18"]
[Round "7.9"]
[White "Kusa, Jakub"]
[Black "Poschadel, Andreas Gregor"]
[Result "1-0"]
[ECO "A40"]
[WhiteElo "2353"]
[BlackElo "2101"]
[Annotator "TA"]
[PlyCount "89"]
[EventDate "2022.08.10"]
[EventCountry "CZE"]
[SourceTitle "playchess.com"]
[Source "ChessBase"]
[SourceQuality "1"]
[TimeControl "40/5400+30:1800+30"]

{[%evp 16,89,11,12,28,31,37,37,26,0,0,0,0,0,71,55,52,62,69,68,61,63,93,81,79,78,157,152,151,158,137,156,151,143,162,144,149,154,144,150,166,142,158,155,141,163,160,162,147,148,213,185,264,265,422,412,463,165,165,8,239,239,265,258,29981,29982,29979,29977,29976,29977,29995,29994,29994,29987,29998,29999]} 1. d4 Nf6 2. c4 e6 3. g3 d5 4. Nf3 Bb4+ 5. Bd2 Be7 6. Bg2 O-O 7. O-O c6 8. Qc2 Nbd7 9. Rd1 a5 {E11: Bogo-Indian.} 10. Bf4 Nh5 11. Bc1 Nhf6 {White is slightly better.} 12. Nc3 b6 13. Ne5 {[#]} Nxe5 $146 ({Predecessor:} 13... Bb7 14. e4 Rc8 15. Bf4 b5 16. exd5 exd5 17. cxb5 cxb5 18. Qb3 b4 19. Nxd5 Nxd5 20. Bxd5 Bxd5 21. Qxd5 Nf6 22. Qxd8 Rfxd8 {1-0 (43) Stupak,K (2568)-Omelja,A (2225) Lutsk 2015}) 14. dxe5 Nd7 (14... Ng4 $11) 15. cxd5 $16 {White is more active.} cxd5 16. e4 d4 17. Rxd4 Qc7 18. Bf4 {[%cal Bc1f4,Bf4e3,Be3d2][%mdl 32]} g5 19. Be3 Nxe5 20. Rc1 Ng4 {[#]} (20... Qb8 $142) 21. Nd5 $1 {[%mdl 512]} Qa7 (21... Qb7 22. Nxe7+) 22. Nxe7+ Qxe7 {[#]} 23. Bd2 {[%cal Oe4e5] e5! is the strong threat.} (23. e5 $6 Nxe3 24. fxe3 Bb7 $11) 23... Ba6 24. e5 Rac8 25. Qe4 Rxc1+ 26. Bxc1 {A strong pair of Bishops.} f5 27. exf6 $1 Qxf6 28. Be3 Nxf2 29. Qc2 Nd3 30. Rxd3 $40 {[%mdl 128] White has strong attack.} Bxd3 31. Qxd3 {aiming for Be4.} Qxb2 32. h3 Qa1+ (32... Qe5 $16 {was called for.}) 33. Kh2 $18 {Black must now prevent Qb5.} Qxa2 (33... Qe5 $142 34. Qd2 h6) 34. Qb5 Rf5 (34... Qc2 {was necessary.} 35. Qxg5+ Qg6) 35. Qxb6 a4 36. g4 $2 (36. Qd8+ Kf7 37. Qd7+ Kf6 38. h4) 36... Rf8 37. Bc5 $2 ({White should play} 37. Bd4 $18 {White threatens Qc7 and mate.} Qb3 38. Qc5 Qb8+ 39. Be5) 37... Re8 $2 {A mistake that costs the game.} (37... Rc8 $11 {and Black is okay.}) 38. Qb5 {[%mdl 1024] White has strong compensation.} Rd8 39. Be7 Rc8 (39... Qd2 $18 40. Qe5 (40. Qxg5+ $2 Qxg5 41. Bxg5 Rd3 $19) (40. Bxg5 Qd6+ 41. Kg1 Rb8 $19) (40. Qxa4 Rc8 $16) (40. Bxd8 Qxd8 41. Qxa4 Qc7+ 42. Kg1 Qc5+ 43. Kh1 Qc1+ 44. Kh2 Qc7+ 45. Kg1 Qb6+ 46. Kf1 Qb1+ 47. Kf2 Qb2+ 48. Kf3 Qc3+ 49. Ke2 Qb2+ 50. Kf3 Qc3+ 51. Ke2 Qb2+ 52. Kf3 $16) 40... Re8 41. Qxe6+ Kg7 42. Qf6+ Kg8) 40. Qxg5+ {White mates.} Kf7 41. Bf6 Rg8 42. Qf4 a3 43. Bh4+ Ke8 44. Qf6 {[%csl Gh4][%cal Rf6e7]} Kd7 45. Qe7+ {Weighted Error Value: White=0.25 (precise) /Black=0.46} 1-0

[Event "Olomouc Chess Summer-IM 2022"]
[Site "Olomouc"]
[Date "2022.08.18"]
[Round "7.10"]
[White "Nagy, Ladislav"]
[Black "Lalic, Bogdan"]
[Result "1/2-1/2"]
[ECO "B53"]
[WhiteElo "2209"]
[BlackElo "2412"]
[Annotator "TA"]
[PlyCount "47"]
[EventDate "2022.08.10"]
[EventCountry "CZE"]
[SourceTitle "playchess.com"]
[Source "ChessBase"]
[SourceQuality "1"]
[TimeControl "40/5400+30:1800+30"]

{[%evp 19,47,0,0,-15,36,37,37,32,34,38,38,14,36,0,0,0,0,0,0,0,0,0,0,0,0,-4,0,-4,0,-24]} 1. e4 {[%emt 0:00:03]} c5 {[%emt 0:01:53]} 2. Nf3 {[%emt 0:00:08]} d6 {[%emt 0:00:46]} 3. d4 {[%emt 0:00:12]} cxd4 {[%emt 0:00:32]} 4. Qxd4 {[%emt 0:00:09]} Nf6 {[%emt 0:00:33]} 5. Nc3 {[%emt 0:01:59]} Nc6 {[%emt 0:00:31]} 6. Bb5 {[%emt 0:00:37]} Bd7 {[%emt 0:00:09]} 7. Bxc6 {[%emt 0:00:29]} Bxc6 {[%emt 0:00:09]} 8. Bg5 {[%emt 0:00:36]} e6 {[%emt 0:00:12]} 9. O-O-O {[%emt 0:00:53]} Be7 {[%emt 0:00:39]} 10. Qd3 $1 {[%emt 0:01:26][%mdl 4] is more profitable than 10.Rhe1 at the moment.} Qa5 {[%emt 0:00:14]} 11. Bd2 {[%emt 0:00:24] B53: Sicilian: 2...d6: Lines with Qxd4.} Qa6 {[%emt 0:01:20]} ({Black should play} 11... d5 $11 12. exd5 (12. Nxd5 $2 Qxa2 13. Nxf6+ gxf6 $19) 12... Nxd5) 12. Qxa6 $14 {[%emt 0:01:00]} bxa6 {[%emt 0:00:07]} 13. Rhe1 {[%emt 0:06:21] White is slightly better.} O-O {[%emt 0:01:54]} 14. Nd4 {[%emt 0:01:53]} Bb7 {[%emt 0:00:15] [#]} 15. Bf4 $146 {[%emt 0:06:38]} ({Predecessor:} 15. f3 Rac8 16. Nb3 d5 17. exd5 Nxd5 18. Ne4 Ba8 19. Kb1 Rfd8 20. a3 e5 21. Ba5 {0-1 (47) Petenyi,T (2463)-Nayhebaver,M (2485) Podhajska 2021}) 15... Rfd8 {[%emt 0:00:41]} 16. Nb3 {[%emt 0:14:27]} Rac8 {[%emt 0:01:33] The position is equal.} 17. f3 {[%emt 0:04:43]} d5 {[%emt 0:00:23]} 18. exd5 {[%emt 0:03:31]} Nxd5 {[%emt 0:00:11]} 19. Nxd5 {[%emt 0:00:14]} Bxd5 {[%emt 0:03:54]} 20. Kb1 {[%emt 0:04:28]} g5 {[%emt 0:12:23]} 21. Be3 {[%emt 0:03:43]} Rd7 {[%emt 0:01:32]} 22. Rd2 {[%emt 0:04:53]} f6 {[%emt 0:04:00]} 23. Rc1 {[%emt 0:04:38][%cal Oc2c4]} Rdc7 {[%emt 0:07:22]} 24. c3 {[%emt 0:08:51] Weighted Error Value: White=0.06 (flawless) /Black=0.10 (very precise)} 1/2-1/2

[Event "Olomouc Chess Summer-IM 2022"]
[Site "Olomouc"]
[Date "2022.08.18"]
[Round "7.11"]
[White "Mannion, Stephen R"]
[Black "Obsivac, Josef"]
[Result "1/2-1/2"]
[ECO "B32"]
[WhiteElo "2232"]
[BlackElo "2272"]
[Annotator "NA RC"]
[PlyCount "23"]
[EventDate "2022.08.10"]
[EventCountry "CZE"]
[SourceTitle "playchess.com"]
[Source "ChessBase"]
[SourceQuality "1"]
[TimeControl "40/5400+30:1800+30"]

1. e4 {[%emt 0:00:01]} c5 {[%emt 0:00:06]} 2. Nf3 {[%emt 0:00:11]} Nc6 {[%emt 0:00:08]} 3. d4 {[%emt 0:00:12]} cxd4 {[%emt 0:00:07]} 4. Nxd4 {[%emt 0:00:04]} e5 {[%emt 0:00:14]} 5. Nb5 {[%emt 0:00:33]} d6 {[%emt 0:00:19]} 6. c4 {[%emt 0:00:38]} g6 {[%emt 0:00:31]} 7. Be2 {[%emt 0:06:26]} Be6 {[%emt 0:01:38]} 8. O-O {[%emt 0:08:58]} a6 {[%emt 0:00:40]} 9. N5c3 {[%emt 0:00:51]} Bg7 {[%emt 0:07:08]} 10. Na3 {[%emt 0:12:42]} Nf6 {[%emt 0:02:08]} 11. Be3 {[%emt 0:07:14]} O-O {[%emt 0:02:26]} 12. Qd2 {[%emt 0:00:07]} 1/2-1/2

[Event "Olomouc Chess Summer-IM 2022"]
[Site "Olomouc"]
[Date "2022.08.18"]
[Round "7.12"]
[White "Shubin, Daniel"]
[Black "Mica, Marek"]
[Result "1/2-1/2"]
[ECO "B19"]
[WhiteElo "2120"]
[BlackElo "2304"]
[Annotator "TA"]
[PlyCount "78"]
[EventDate "2022.08.10"]
[EventCountry "CZE"]
[SourceTitle "playchess.com"]
[Source "ChessBase"]
[SourceQuality "1"]
[TimeControl "40/5400+30:1800+30"]

{[%evp 24,78,26,-8,27,17,28,0,0,0,16,0,0,-13,0,-26,-8,-41,-34,-40,-27,-26,-26,-23,-25,-41,-10,-124,0,-10,0,-72,-79,-75,-74,-167,-161,-160,-159,-157,-170,-168,-156,-164,-162,-254,-160,-173,-101,-126,0,0,0,0,0,0,0]} 1. e4 {[%emt 0:00:01]} c6 {[%emt 0:00:36]} 2. d4 {[%emt 0:00:05]} d5 {[%emt 0:00:04]} 3. Nc3 {[%emt 0:00:02]} dxe4 {[%emt 0:00:06]} 4. Nxe4 {[%emt 0:00:04]} Bf5 {[%emt 0:00:06]} 5. Ng3 {[%emt 0:00:04]} Bg6 {[%emt 0:00:06]} 6. h4 {[%emt 0:00:04]} h6 {[%emt 0:00:06]} 7. Nf3 {[%emt 0:00:04]} Nd7 {[%emt 0:00:05]} 8. h5 {[%emt 0:00:05]} Bh7 {[%emt 0:00:05]} 9. Bd3 {[%emt 0:00:03]} Bxd3 {[%emt 0:00:06]} 10. Qxd3 {[%emt 0:00:02]} e6 {[%emt 0:00:08]} 11. Bd2 {[%emt 0:00:03]} Ngf6 {[%emt 0:00:11]} 12. O-O-O {[%emt 0:00:06]} Be7 {[%emt 0:01:05][%cal Bf8e7,Be7c5,Bc5d4,Bd4e5][%mdl 32]} 13. Qe2 {[%emt 0:00:07]} Qb6 {[%emt 0:02:50] B19: Classical Caro-Kann: 4...Bf5 main line.} 14. Ne5 {[%emt 0:00:53]} Rd8 {[%emt 0:04:09]} 15. Kb1 {[%emt 0:28:30]} (15. Rhe1 $5 {[%cal Re5f7]} O-O {[#]} 16. Ng6 $1 $11) 15... c5 {[%emt 0:03:16]} 16. dxc5 {[%emt 0:09:56] [#]} Bxc5 $146 {[%emt 0:01:45] [#] Threatens to win with ...Nxe5.} ({Predecessor:} 16... Nxc5 17. Be3 O-O 18. c4 Qa5 19. Qc2 Rc8 20. Qd2 Qc7 21. Bf4 Qb6 22. Qc2 a5 {½-½ (59) Ansat,A (2391)-Gaal,Z (2336) Budapest 2021}) 17. Nd3 {[%emt 0:08:14]} O-O {[%emt 0:19:05]} 18. f3 {[%emt 0:08:29]} Rc8 {[%emt 0:17:56]} 19. Ne4 {[%emt 0:01:33]} Nxe4 {[%emt 0:01:17]} 20. fxe4 {[%emt 0:02:07]} Bd4 {[%emt 0:01:05]} 21. Bc1 {[%emt 0:04:01]} Ne5 {[%emt 0:12:59]} 22. Nxe5 {[%emt 0:04:23]} Bxe5 {[%emt 0:00:05]} 23. Rd7 {[%emt 0:00:23]} a5 {[%emt 0:15:55]} 24. Rhd1 {[%emt 0:06:01]} Qc6 {[%emt 0:02:49]} (24... a4 $5 {[%cal Re5b2]} 25. Qf3 Rc5 $15) 25. g3 {[%emt 0:04:38]} (25. g4 $11 {remains equal.}) 25... b5 {[%emt 0:09:05]} (25... Bxg3 $17 26. c3 Be5) 26. Bf4 $11 {[%emt 0:01:07]} Qc5 {[%emt 0:01:10]} 27. Bxe5 {[%emt 0:04:21]} (27. a3 $11 {keeps the balance.}) 27... Qxe5 $17 {[%emt 0:00:09]} 28. Rb7 {[%emt 0:07:04]} Rc4 {[%emt 0:03:13]} 29. a4 {[%emt 0:02:32]} (29. Qf3 $17) 29... Rb4 $19 {[%emt 0:01:25][%csl Gb4][%cal Re5b2]} (29... Rxa4 30. Qf3 $17) (29... Rxe4 30. Qxb5 Qxg3 31. Qxa5 $17) 30. c3 {[%emt 0:00:20]} Qxc3 {[%emt 0:02:58]} ({Weaker is} 30... Rxe4 31. Qxb5 Qxg3 32. Qxa5 $17) (30... Rxa4 31. Rxb5 Qxe4+ 32. Qxe4 Rxe4 33. Rxa5 $11) 31. Rxb5 {[%emt 0:02:28]} Qb3 {[%emt 0:00:44]} ({And not} 31... Qxg3 32. Rxb4 axb4 33. Ka2 $17) 32. Rxb4 {[%emt 0:02:33]} axb4 {[%emt 0:00:41][%mdl 4096] Endgame KQR-KQR} ({Stronger than} 32... Qxb4 33. Qc2 $15) 33. Qc2 {[%emt 0:04:33]} Qxg3 {[%emt 0:00:05]} 34. Qc5 {[%emt 0:00:24]} (34. Rd3 {was worth a try.} Qe5 35. Rh3) 34... Qb3 {[%emt 0:00:47]} 35. Qc2 {[%emt 0:00:50]} Qe3 {[%emt 0:00:34]} (35... Qf3 $19 36. Rd4 b3) 36. Ka2 $17 {[%emt 0:01:05]} Rb8 {[%emt 0:00:53]} ({Black should try} 36... Qf3 $17 37. Rd4 Qxh5 38. Rxb4 Ra8) 37. Rd3 {[%emt 0:00:24] The position is equal.} Qg5 {[%emt 0:00:38]} 38. Qc7 {[%emt 0:01:12] Prevents Qa5.} Ra8 {[%emt 0:00:34]} 39. Kb3 {[%emt 0:00:38]} Qxh5 {[%emt 0:00:35] Weighted Error Value: White=0.22 (precise) /Black=0.28 (precise)} 1/2-1/2

[Event "Olomouc Chess Summer-IM 2022"]
[Site "Olomouc"]
[Date "2022.08.18"]
[Round "7.13"]
[White "Wiley, Tom E"]
[Black "Paseka, Matyas"]
[Result "1-0"]
[ECO "E92"]
[WhiteElo "2169"]
[BlackElo "2218"]
[Annotator "TA"]
[PlyCount "139"]
[EventDate "2022.08.10"]
[EventCountry "CZE"]
[SourceTitle "playchess.com"]
[Source "ChessBase"]
[SourceQuality "1"]
[TimeControl "40/5400+30:1800+30"]

{[%evp 30,139,35,19,13,8,41,42,43,32,57,38,112,88,81,70,87,79,83,53,57,57,34,18,8,10,25,0,0,0,9,12,39,43,43,0,70,67,153,144,151,149,136,136,209,144,143,0,225,0,160,0,228,200,441,440,426,420,583,489,606,565,540,552,535,522,525,519,513,478,470,460,679,660,936,865,643,637,645,618,575,567,1927,1640,29950,10961,29966,29968,29969,29955,7785,1507,29968,29969,29977,29978,29984,29985,29987,29988,29988,29984,29986,29987,29987,29988,29988,29985,29987,29988,29990,29991]} 1. d4 {[%emt 0:00:01]} Nf6 {[%emt 0:00:07]} 2. c4 {[%emt 0:00:07]} g6 {[%emt 0:00:07]} 3. Nc3 {[%emt 0:00:04]} Bg7 {[%emt 0:00:07]} 4. e4 {[%emt 0:00:09]} d6 {[%emt 0:00:08]} 5. Nf3 {[%emt 0:00:10]} O-O {[%emt 0:00:11]} 6. Be2 {[%emt 0:00:12]} e5 {[%emt 0:00:10]} 7. d5 {[%emt 0:00:06]} a5 {[%emt 0:00:09]} 8. Bg5 {[%emt 0:00:04]} h6 {[%emt 0:00:10]} 9. Bh4 {[%emt 0:00:03]} Na6 {[%emt 0:00:12]} 10. Nd2 {[%emt 0:00:18]} Qe8 {[%emt 0:00:13]} 11. a3 {[%emt 0:00:43]} Bd7 {[%emt 0:00:18]} 12. b3 {[%emt 0:00:05]} Nh7 {[%emt 0:00:19]} 13. O-O {[%emt 0:00:27]} h5 {[%emt 0:00:10]} 14. f3 {[%emt 0:00:19]} Bh6 {[%emt 0:00:18]} 15. Rb1 {[%emt 0:00:06] 15.Kh1 is not played anymore.} Be3+ {[%emt 0:00:31]} 16. Bf2 {[%emt 0:00:07]} Bxf2+ {[%emt 0:04:13] E92: King's Indian: Classical: 6 Be2 e5: 7 dxe5, 7 Be3 and Petrosian System without 7...Nbd7.} 17. Rxf2 {[%emt 0:00:12]} f5 {[%emt 0:05:24]} 18. exf5 {[%emt 0:04:30]} gxf5 {[%emt 0:00:15] White is slightly better.} 19. b4 {[%emt 0:08:50]} axb4 {[%emt 0:08:00]} 20. axb4 {[%emt 0:00:09][%cal Oc4c5] [#]} b6 $146 {[%emt 0:00:12] Against c5} ({Black should try} 20... Qe7 $14) ({Predecessor:} 20... Qe7 21. Qb3 Rf7 22. Rff1 Rg7 23. Rf2 Kh8 24. Qd1 Rag8 25. Kh1 Qh4 26. Qe1 Nxb4 {0-1 (39) Gerard,A (1852)-Cutillas Ripoll,P (2446) ICCF email 2011}) 21. Qb3 {[%emt 0:20:13]} Qg6 {[%emt 0:03:58]} 22. Qb2 {[%emt 0:02:27]} Ng5 {[%emt 0:03:45]} 23. Kh1 {[%emt 0:00:54]} e4 {[%emt 0:00:49]} 24. fxe4 {[%emt 0:11:31]} fxe4 {[%emt 0:01:28]} 25. Rxf8+ {[%emt 0:00:05]} (25. Rff1 {with more complications.} h4 26. c5 Rxf1+ 27. Rxf1 bxc5 28. Bxa6 Rxa6 29. bxc5 dxc5 30. Qb8+) 25... Rxf8 {[%emt 0:00:12]} 26. Rf1 {[%emt 0:00:12] Prevents Rf2.} (26. Qa3 {is more complex.} e3 27. Nf3 Nxf3 28. gxf3 Kf7 29. Rg1) 26... Rxf1+ {[%emt 0:06:28]} 27. Nxf1 {[%emt 0:04:41][%cal Oc4c5] Black must now prevent c5!} Qf6 $1 {[%emt 0:09:55]} 28. b5 {[%emt 0:08:06]} Nc5 {[%emt 0:01:12] [#] aiming for ...Bg4.} 29. Nd1 $36 {[%emt 0:00:17][%mdl 2048] White is more active.} Qf7 {[%emt 0:14:36]} 30. Qd2 {[%emt 0:17:43]} Nh7 {[%emt 0:03:53]} 31. Qe1 {[%emt 0:03:30]} (31. Kg1 {is interesting.} Nf6 32. Qg5+ Kh7 33. Nde3) 31... Nf6 {[%emt 0:09:08]} 32. Kg1 {[%emt 0:02:51]} (32. Qh4 {looks sharper.} Bg4 33. Bxg4 Nxg4 34. Kg1) 32... Kf8 {[%emt 0:04:39]} ({Black should play} 32... Qg6 $11) 33. Qh4 $1 $14 {[%emt 0:01:09]} Qg6 {[%emt 0:01:24]} (33... Bg4 $14 34. Bxg4 Nxg4) 34. Ng3 $16 {[%emt 0:05:34]} Bg4 {[%emt 0:01:48]} 35. Bxg4 {[%emt 0:02:33]} hxg4 {[%emt 0:00:11] [#]} 36. Ne3 $1 {[%emt 0:03:15]} Ncd7 {[%emt 0:03:37]} (36... Kf7 $16 {was necessary.} 37. Ngf5 Qh5) 37. Qh8+ {[%emt 0:02:51]} Ng8 {[%emt 0:01:15]} 38. Qh4 {[%emt 0:01:54] White is more active.} (38. Ngf5 $16) 38... Ngf6 $1 $18 {[%emt 0:00:20]} 39. Qh8+ {[%emt 0:00:46]} Ng8 $1 {[%emt 0:00:10]} 40. Qh4 {[%emt 0:00:26]} (40. Ngf5 $16) 40... Ngf6 $1 {[%emt 0:00:33]} 41. Ne2 {[%emt 0:06:03] Threatens to win with Nf4.} Qh5 $2 {[%emt 0:21:20]} (41... Kf7 42. Nf4 Qg8) 42. Qxh5 {[%emt 0:00:40]} Nxh5 {[%emt 0:01:47]} 43. Nxg4 {[%emt 0:00:11][%mdl 4096] Endgame KNN-KNN} Ke7 {[%emt 0:00:36]} 44. Kf2 {[%emt 0:00:52]} Nhf6 {[%emt 0:04:01]} 45. Ne3 {[%emt 0:01:11]} Ne5 {[%emt 0:00:15]} 46. h3 {[%emt 0:05:59]} Nd3+ {[%emt 0:00:28]} 47. Kg3 {[%emt 0:00:27]} Nd7 {[%emt 0:01:46]} 48. Kg4 {[%emt 0:03:24]} Kf6 {[%emt 0:00:33]} 49. h4 {[%emt 0:01:55]} N7e5+ {[%emt 0:00:23]} 50. Kh5 {[%emt 0:00:12]} Nb2 {[%emt 0:00:11]} (50... Nf7 $142 51. g4 Kg7 52. Nf5+ Kh7) 51. g4 {[%emt 0:01:13][%cal Bg2g4,Bg4g5][%mdl 32]} Nbxc4 {[%emt 0:00:15]} 52. g5+ {[%emt 0:00:11]} Kg7 {[%emt 0:01:01]} 53. Nxc4 {[%emt 0:06:26]} Nxc4 {[%emt 0:00:04] KN-KN} 54. Kg4 {[%emt 0:00:12]} Ne3+ {[%emt 0:00:35]} 55. Kf4 {[%emt 0:00:14]} Nxd5+ {[%emt 0:00:20]} 56. Kxe4 {[%emt 0:00:06]} Ne7 {[%emt 0:00:49]} 57. h5 {[%emt 0:01:59] Nd4 would kill now.} c6 {[%emt 0:02:43]} 58. bxc6 {[%emt 0:00:53]} Nxc6 {[%emt 0:00:06]} 59. Kd5 {[%emt 0:00:14]} Ne5 {[%emt 0:01:38]} 60. Nd4 {[%emt 0:01:28] White threatens Nf5+ and mate.} b5 {[%emt 0:06:00]} 61. Nf5+ {[%emt 0:00:49] White mates.} Kh7 {[%emt 0:01:41]} 62. Nxd6 {[%emt 0:00:20]} Nd3 {[%emt 0:07:13]} 63. Ke4 {[%emt 0:03:00]} Nc5+ {[%emt 0:00:14]} 64. Kf5 {[%emt 0:00:04]} Nd7 {[%emt 0:03:42]} 65. Nxb5 {[%emt 0:00:23]} Nf8 {[%emt 0:00:43]} 66. Nd6 {[%emt 0:00:35]} Kg7 {[%emt 0:00:34]} 67. Ne8+ {[%emt 0:00:38]} Kf7 {[%emt 0:00:08]} 68. Nf6 {[%emt 0:01:01]} Kg7 {[%emt 0:00:18]} 69. Ng4 {[%emt 0:00:30]} Nh7 {[%emt 0:02:43]} 70. g6 {[%emt 0:01:24] Weighted Error Value: White=0.22 (precise) /Black=0.77} 1-0